bitfinex/quotes_ETHUSD_20241223
["timestamp","ask_amount","ask_price","bid_price","bid_amount"]
[1734913934128,6.81346,3258.6,3258.5,7e-06]
[1734913934329,3.744556,3259.7,3258.5,7e-06]
[1734913934832,3.06826,3259.2,3258.5,7e-06]
[1734913935329,6.812406,3259.7,3258.5,7e-06]
[1734913935330,3.06846,3259.0,3258.5,7e-06]
[1734913935491,3.06861,3258.8,3258.5,7e-06]
[1734913935691,3.06871,3258.7,3258.5,7e-06]
[1734913936101,0.306846,3258.9,3258.5,7e-06]
[1734913936512,3.06873,3258.7,3258.5,7e-06]
[1734913939227,0.7709,3258.6,3258.5,7e-06]
[1734913939430,3.7709,3258.6,3258.5,7e-06]
[1734913939628,4.3209,3258.6,3258.5,7e-06]
[1734913939829,3.07006,3257.3,3256.6,0.37751484]
[1734913940042,3.07015,3257.2,3256.6,0.37751484]
[1734913940331,3.06991,3257.5,3256.6,0.37751484]
[1734913940851,3.8119,3258.2,3256.7,0.6893]
[1734913941000,3.06954,3257.9,3256.7,0.6893]
[1734913941198,3.06917,3258.3,3256.9,3.07037]
[1734913941515,3.06947,3257.9,3257.0,0.6893]
[1734913942737,3.06952,3257.9,3257.0,0.6893]
[1734913942942,3.0,3258.5,3257.3,0.6893]
[1734913943238,1.263072,3259.0,3257.4,0.6893]
[1734913943397,1.263072,3259.0,3257.6,8.92238]
[1734913943734,1.263072,3259.1,3258.2,0.6893]
[1734913943941,1.263072,3259.1,3258.3,8.92238]
[1734913944133,1.263072,3259.1,3258.7,3.0687]
[1734913944431,1.263072,3259.1,3258.8,0.6893]
[1734913944844,1.263072,3260.2,3258.8,0.6893]
[1734913945142,1.263072,3260.2,3258.0,4.00425456]
[1734913945143,1.263072,3260.2,3259.2,0.6893]
[1734913945339,3.06742,3260.1,3259.2,0.6893]
[1734913945632,1.263072,3260.2,3259.2,0.6893]
[1734913945807,3.06779,3259.7,3259.2,0.6893]
[1734913946011,3.374569,3259.7,3259.2,0.6893]
[1734913946221,0.306779,3259.7,3259.2,0.6893]
[1734913946422,3.06789,3259.6,3259.2,0.6893]
[1734913946607,3.06762,3259.9,3259.2,0.6893]
[1734913946826,0.66237678,3260.3,3259.2,0.6893]
[1734913947013,3.06797,3259.5,3259.2,0.6893]
[1734913947209,3.06701,3260.5,3259.2,0.6893]
[1734913947533,3.06759,3259.9,3259.2,0.6893]
[1734913948099,1.57780302,3260.6,3259.2,0.6893]
[1734913948298,3.1577803,3260.5,3259.2,0.6893]
[1734913948496,3.0678,3259.7,3259.2,0.6893]
[1734913949037,3.06787,3259.6,3259.2,0.6893]
[1734913949236,3.0674,3260.1,3259.2,0.6893]
[1734913949460,3.06814,3259.3,3258.7,0.6893]
[1734913949759,0.306814,3259.2,3258.7,0.6893]
[1734913950046,3.8026,3260.4,3258.7,0.6893]
[1734913950205,3.06745,3260.1,3258.8,3.06853]
[1734913950611,2.065672,3260.4,3258.8,3.06853]
[1734913950938,0.70274003,3260.3,3258.9,0.6893]
[1734913951434,3.06722,3260.3,3259.2,0.6893]
[1734913951635,1.263072,3260.4,3259.2,0.6893]
[1734913951862,3.2248603,3260.5,3259.2,0.6893]
[1734913952063,0.1577803,3260.5,3259.2,0.6893]
[1734913952220,0.31473102,3260.6,3259.2,0.6893]
[1734913952221,3.06776,3259.8,3259.2,0.6893]
[1734913952400,3.06742,3260.1,3259.2,0.6893]
[1734913952601,3.38169102,3260.6,3259.2,0.6893]
[1734913952602,3.06762,3259.9,3259.2,0.6893]
[1734913952817,3.0671,3260.4,3259.2,0.6893]
[1734913953069,1.263072,3260.7,3259.4,0.6893]
[1734913953225,1.263072,3260.7,3259.9,0.6893]
[1734913954037,1.263072,3260.7,3259.9,3.06749]
[1734913954243,1.263072,3261.3,3260.1,0.6893]
[1734913954429,0.306627,3261.2,3260.1,3.75665]
[1734913954937,0.306627,3261.2,3260.1,0.6893]
[1734913955140,3.06707,3260.5,3260.1,0.6893]
[1734913955301,3.0668,3260.8,3260.1,0.6893]
[1734913955497,0.30668,3260.7,3260.1,0.6893]
[1734913955736,0.8026,3261.0,3260.1,0.6893]
[1734913955928,0.306627,3261.2,3260.1,0.6893]
[1734913956123,5.26732656,3261.9,3260.1,0.6893]
[1734913956124,3.06595,3261.7,3260.1,0.6893]
[1734913956323,3.06595,3261.7,3260.3,0.6893]
[1734913957128,1.263072,3261.8,3260.4,0.6893]
[1734913957444,1.263072,3261.8,3260.9,9.61168]
[1734913957645,1.263072,3261.8,3261.2,0.6893]
[1734913958149,3.38053102,3261.8,3261.2,0.6893]
[1734913958327,3.06558,3262.1,3261.2,0.6893]
[1734913958534,4.263072,3262.4,3261.2,0.6893]
[1734913958872,3.0658,3261.8,3261.2,0.6893]
[1734913959028,3.0,3262.2,3261.2,0.6893]
[1734913959366,3.06571,3261.9,3261.2,0.6893]
[1734913959979,3.606532,3262.1,3261.2,0.6893]
[1734913960180,0.606532,3262.1,3261.2,0.6893]
[1734913960460,4.263072,3262.6,3261.4,0.6893]
[1734913960611,3.0654,3262.3,3261.4,0.6893]
[1734913961118,1.263072,3262.4,3261.4,0.6893]
[1734913961330,3.06544,3262.2,3261.4,0.6893]
[1734913961535,3.06562,3262.0,3261.4,0.6893]
[1734913961943,1.263072,3262.4,3261.0,8.92238]
[1734913961944,1.263072,3262.4,3261.7,3.0]
[1734913962139,1.263072,3262.4,3262.3,0.6893]
[1734913962549,3.06536,3262.3,3261.6,0.6893]
[1734913962721,1.263072,3262.4,3261.6,0.6893]
[1734913962912,1.263072,3262.4,3261.8,0.6893]
[1734913964129,3.06518,3262.5,3261.8,0.6893]
[1734913965316,6.06474,3263.0,3261.8,0.6893]
[1734913965546,3.0,3262.9,3261.8,0.6893]
[1734913965751,0.3,3262.8,3261.8,0.6893]
[1734913965939,0.7525,3263.1,3261.8,0.6893]
[1734913966625,3.0652,3262.5,3261.8,0.6893]
[1734913967062,3.06526,3262.4,3261.8,0.6893]
[1734913967214,0.306526,3262.3,3261.8,0.6893]
[1734913967414,1.059026,3262.3,3261.4,0.6893]
[1734913967619,3.06616,3261.5,3260.3,0.6893]
[1734913967962,3.06576,3261.9,3260.4,0.6893]
[1734913968250,3.0659,3261.7,3260.4,0.6893]
[1734913968561,3.0659,3261.7,3260.5,3.067]
[1734913968732,3.0659,3261.7,3260.6,0.6893]
[1734913969060,0.8303,3261.8,3260.6,0.6893]
[1734913969264,3.06682,3260.7,3260.6,0.6893]
[1734913969419,3.0,3261.6,3260.6,0.6893]
[1734913969623,3.06667,3260.9,3260.6,0.6893]
[1734913970373,3.06645,3261.1,3260.6,0.6893]
[1734913971260,0.306645,3261.1,3260.6,0.6893]
[1734913971559,3.06654,3261.1,3260.6,0.6893]
[1734913971742,3.06655,3261.0,3260.6,0.6893]
[1734913971947,3.06665,3260.9,3260.6,0.6893]
[1734913972347,6.06597,3261.6,3260.0,0.6893]
[1734913972575,3.0672,3260.3,3260.0,0.6893]
[1734913972751,0.8179,3261.4,3260.0,0.6893]
[1734913973059,3.06665,3260.9,3260.0,0.6893]
[1734913973448,3.06644,3261.2,3260.0,0.6893]
[1734913974565,3.06644,3261.2,3260.1,0.6893]
[1734913975733,0.606597,3261.5,3260.1,0.6893]
[1734913975963,3.0665,3261.1,3260.1,0.6893]
[1734913977337,3.06624,3261.4,3260.1,0.6893]
[1734913977534,3.06597,3261.7,3260.3,3.0]
[1734913977838,3.06569,3262.0,3260.8,0.6893]
[1734913978034,3.372259,3262.0,3260.8,0.6893]
[1734913978254,0.306569,3262.0,3260.8,0.6893]
[1734913978561,3.06588,3261.7,3260.8,0.6893]
[1734913978778,3.0655,3262.1,3260.8,0.6893]
[1734913978925,0.306526,3262.3,3260.8,0.6893]
[1734913979499,3.306526,3262.3,3260.8,0.6893]
[1734913979696,0.75792137,3262.2,3260.8,0.6893]
[1734913979977,3.06579,3261.8,3260.8,0.6893]
[1734913980150,3.06561,3262.0,3260.8,0.6893]
[1734913980353,0.75792137,3262.2,3260.8,0.6893]
[1734913980550,3.06593,3261.7,3260.8,0.6893]
[1734913980859,0.306593,3261.7,3260.8,0.6893]
[1734913981051,3.372493,3261.7,3260.8,0.6893]
[1734913981247,0.306593,3261.7,3260.8,0.6893]
[1734913981447,1.066293,3261.7,3260.8,0.6893]
[1734913981673,3.06599,3261.6,3260.2,0.6893]
[1734913981838,3.0672,3260.3,3260.2,0.6893]
[1734913982039,3.06677,3260.8,3260.2,0.6893]
[1734913982244,3.0672,3260.3,3260.2,0.6893]
[1734913982446,3.06748,3260.0,3259.6,0.6893]
[1734913983100,3.06775,3259.8,3259.6,0.6893]
[1734913983379,3.0,3260.7,3258.4,3.06896]
[1734913983380,3.06776,3259.7,3258.9,0.6893]
[1734913983549,3.0672,3260.3,3258.9,0.6893]
[1734913983749,0.7908,3260.4,3258.9,0.6893]
[1734913983750,3.06739,3260.1,3258.9,0.6893]
[1734913984086,3.06803,3259.5,3258.1,0.6893]
[1734913984239,3.06824,3259.2,3258.1,0.6893]
[1734913984577,3.06836,3259.1,3258.1,0.6893]
[1734913985481,3.06845,3259.0,3258.1,3.6893]
[1734913986178,3.06866,3258.8,3258.1,0.6893]
[1734913986355,3.06803,3259.5,3258.1,0.6893]
[1734913986356,3.06824,3259.2,3258.1,0.6893]
[1734913986674,0.385883,3259.4,3258.1,0.6893]
[1734913986879,3.06872,3258.7,3258.1,0.6893]
[1734913987788,3.06864,3258.8,3258.1,0.6893]
[1734913988216,3.06872,3258.7,3258.1,0.6893]
[1734913988482,3.06918,3258.2,3257.4,0.6893]
[1734913988668,3.06929,3258.1,3257.4,0.6893]
[1734913989180,3.06941,3258.0,3257.4,0.6893]
[1734913989385,3.0,3258.3,3257.4,0.6893]
[1734913989683,0.7588,3258.2,3256.6,1.06681484]
[1734913989844,3.06962,3257.8,3256.6,1.06681484]
[1734913990052,3.07015,3257.2,3256.6,1.06681484]
[1734913992265,3.06936,3258.0,3256.6,1.06681484]
[1734913992591,0.37588,3258.1,3256.7,3.07057]
[1734913992796,0.7588,3258.2,3256.6,4.13747484]
[1734913992797,3.06941,3258.0,3256.6,4.13747484]
[1734913993089,0.7588,3258.2,3256.6,1.06681484]
[1734913993394,3.06985,3257.5,3256.6,1.06681484]
[1734913994089,0.7588,3258.2,3256.6,1.06681484]
[1734913994289,3.07019,3257.2,3256.6,1.06681484]
[1734913994499,3.07052,3256.8,3256.6,0.37751484]
[1734913996176,0.7987,3256.7,3256.6,0.37751484]
[1734913997007,3.07115,3256.1,3256.0,0.00767]
[1734913997183,6.87014,3255.8,3255.7,7e-06]
[1734913997383,7.42014,3255.8,3255.7,7e-06]
[1734913997622,3.8707,3255.2,3255.1,0.01372707]
[1734913997909,0.307115,3256.0,3255.1,0.01372707]
[1734913997910,0.7987,3255.7,3255.1,0.01372707]
[1734913998075,0.307019,3257.2,3255.1,0.01372707]
[1734913998278,3.07081,3256.5,3255.1,3.08580707]
[1734913998478,3.07089,3256.4,3255.2,0.6893]
[1734913998723,0.7987,3256.6,3255.2,0.6893]
[1734913999005,3.86895,3257.1,3255.3,11.99426]
[1734913999169,3.07064,3256.7,3255.3,11.99426]
[1734913999365,3.77803455,3257.0,3255.2,0.6893]
[1734913999573,3.07192,3255.3,3255.1,0.01372707]
[1734913999809,0.7792,3255.2,3255.1,0.01372707]
[1734914000009,1.164312,3255.2,3255.1,0.01372707]
[1734914000212,1.164312,3255.2,3255.1,7.07e-06]
[1734914000805,4.164312,3255.2,3255.1,7.07e-06]
[1734914001134,1.164312,3255.2,3255.1,7.07e-06]
[1734914001295,3.0721,3255.1,3255.0,994.10560707]
[1734914001479,6.4880532,3255.1,3255.0,989.49730707]
[1734914001982,6.4880532,3255.1,3255.0,984.88900707]
[1734914002315,7.0380532,3255.1,3255.0,976.87019574]
[1734914002518,7.0380532,3255.1,3255.0,973.79719574]
[1734914002691,7.0380532,3255.1,3255.0,972.26109574]
[1734914002893,6.4880532,3255.1,3255.0,972.26109574]
[1734914003294,12.06613895,3255.1,3255.0,971.42779574]
[1734914003637,11.39251575,3255.1,3255.0,930.17559491]
[1734914004279,10.84251575,3255.1,3255.0,930.17559491]
[1734914004486,6.82793,3255.1,3255.0,930.17559491]
[1734914004818,3.06443,3255.1,3255.0,921.62648705]
[1734914005706,7.77468575,3255.6,3255.0,921.62648705]
[1734914006018,3.07201,3255.2,3255.0,921.62648705]
[1734914006938,0.7601,3255.6,3255.0,921.62648705]
[1734914006939,3.0718,3255.5,3255.0,921.62648705]
[1734914007137,0.7601,3255.6,3255.0,921.62648705]
[1734914007634,3.07201,3255.2,3255.0,921.62648705]
[1734914009164,6.48382153,3255.9,3255.0,922.39538705]
[1734914009165,3.07148,3255.8,3255.0,922.39538705]
[1734914009452,0.7537,3256.1,3255.0,922.39538705]
[1734914009667,3.07151,3255.8,3255.0,922.39538705]
[1734914009827,3.07157,3255.7,3255.0,922.39538705]
[1734914010011,0.7537,3256.1,3255.0,922.39538705]
[1734914010470,3.07153,3255.7,3255.0,922.39538705]
[1734914010920,3.07173,3255.5,3255.0,922.39538705]
[1734914011111,3.07196,3255.3,3255.0,921.62648705]
[1734914011633,3.07201,3255.2,3255.0,921.62648705]
[1734914011822,3.48382153,3255.9,3255.0,921.62648705]
[1734914012024,3.07173,3255.5,3255.0,921.62648705]
[1734914013031,3.48382153,3255.9,3255.0,921.62648705]
[1734914013236,3.07203,3255.2,3255.0,921.62648705]
[1734914015430,3.07203,3255.2,3255.0,921.19424365]
[1734914015753,4.72257703,3255.1,3255.0,866.14694963]
[1734914016046,4.72257703,3255.1,3255.0,850.79897303]
[1734914016047,15.73313355,3255.1,3255.0,850.79897303]
[1734914016349,16.33714552,3255.1,3255.0,843.89167496]
[1734914016526,16.33714552,3255.1,3255.0,839.28337496]
[1734914016527,12.85332399,3255.1,3255.0,839.28337496]
[1734914016713,11.08493001,3255.1,3255.0,833.58390321]
[1734914016914,7.85693001,3255.1,3255.0,833.58390321]
[1734914017135,7.16930158,3255.1,3255.0,833.58390321]
[1734914017412,4.7819335,3255.1,3255.0,833.58390321]
[1734914017713,4.7819335,3255.1,3255.0,827.43950321]
[1734914017714,3.62792153,3255.1,3255.0,827.43950321]
[1734914017914,3.62792153,3255.1,3255.0,822.87957075]
[1734914018639,3.62792153,3255.1,3255.0,818.27127075]
[1734914018640,3.47585345,3255.1,3255.0,818.27127075]
[1734914019248,4.02585345,3255.1,3255.0,818.27127075]
[1734914019454,6.47585345,3255.1,3255.0,818.27127075]
[1734914019638,3.07203,3255.2,3255.0,818.27127075]
[1734914022121,6.48382153,3255.9,3255.0,818.27127075]
[1734914022122,3.07176,3255.5,3255.0,818.27127075]
[1734914022322,3.07147,3255.8,3255.0,818.85037446]
[1734914022556,3.07157,3255.7,3255.1,0.8303]
[1734914022726,3.07196,3255.3,3255.1,0.8303]
[1734914022934,3.0721,3255.1,3255.0,818.27127075]
[1734914025552,3.07186,3255.4,3255.0,818.27127075]
[1734914025553,3.07185,3255.4,3255.0,818.27127075]
[1734914025955,3.0719,3255.4,3255.0,818.27127075]
[1734914026165,3.07145,3255.8,3255.0,818.27127075]
[1734914026730,3.0721,3255.1,3255.0,818.27127075]
[1734914027620,9.55592153,3255.1,3255.0,810.59077075]
[1734914028022,10.10592153,3255.1,3255.0,810.59077075]
[1734914028660,10.10592153,3255.1,3255.0,805.98247075]
[1734914028869,10.60592153,3255.1,3255.0,801.05909956]
[1734914029025,10.60592153,3255.1,3255.0,798.17562956]
[1734914029446,10.60592153,3255.1,3255.0,796.63952956]
[1734914029646,10.60592153,3255.1,3255.0,789.74288425]
[1734914030325,10.60592153,3255.1,3255.0,789.12188425]
[1734914030658,10.60592153,3255.1,3255.0,784.51358425]
[1734914030863,10.10592153,3255.1,3255.0,784.51358425]
[1734914031750,10.10592153,3255.1,3255.0,781.44138425]
[1734914032089,10.10592153,3255.1,3255.0,778.36918425]
[1734914032542,9.55592153,3255.1,3255.0,773.76088425]
[1734914032741,9.55592153,3255.1,3255.0,772.22478425]
[1734914033069,9.55592153,3255.1,3255.0,770.68868425]
[1734914033488,9.55592153,3255.1,3255.0,769.15258425]
[1734914033785,10.10592153,3255.1,3255.0,766.08038425]
[1734914034484,10.10592153,3255.1,3255.0,764.54428425]
[1734914034689,10.10592153,3255.1,3255.0,763.00818425]
[1734914034982,10.10592153,3255.1,3255.0,758.39988425]
[1734914035483,10.10592153,3255.1,3255.0,756.86378425]
[1734914035686,10.10592153,3255.1,3255.0,753.79158425]
[1734914035864,10.10592153,3255.1,3255.0,750.71938425]
[1734914036479,10.10592153,3255.1,3255.0,749.18328425]
[1734914036688,10.10592153,3255.1,3255.0,744.57498425]
[1734914036892,10.10592153,3255.1,3255.0,743.03888425]
[1734914037558,10.10592153,3255.1,3255.0,741.50278425]
[1734914037764,10.10592153,3255.1,3255.0,736.89448425]
[1734914038178,11.33613053,3255.1,3255.0,736.89448425]
[1734914038356,11.652665,3255.1,3255.0,736.89448425]
[1734914038573,11.902665,3255.1,3255.0,731.91443168]
[1734914038785,11.652665,3255.1,3255.0,731.91443168]
[1734914039367,11.902665,3255.1,3255.0,731.91443168]
[1734914039688,11.652665,3255.1,3255.0,727.30613168]
[1734914040251,8.102665,3255.1,3255.0,727.30613168]
[1734914040584,0.31653447,3255.1,3255.0,728.13393168]
[1734914040786,6.55592153,3255.1,3255.0,727.30613168]
[1734914041187,6.55592153,3255.1,3255.0,724.23393168]
[1734914041575,6.55592153,3255.1,3255.0,721.16173168]
[1734914041776,6.55592153,3255.1,3255.0,716.55343168]
[1734914041996,10.10592153,3255.1,3255.0,716.55343168]
[1734914042671,10.72040953,3255.1,3255.0,716.55343168]
[1734914043597,10.72040953,3255.1,3255.0,708.87293168]
[1734914043959,17.43223106,3255.1,3255.0,702.28394452]
[1734914044179,17.43223106,3255.1,3255.0,685.58982647]
[1734914044386,26.71198906,3255.1,3255.0,677.09334912]
[1734914044596,26.71198906,3255.1,3255.0,667.54671996]
[1734914044597,21.15976106,3255.1,3255.0,667.54671996]
[1734914044783,17.43223106,3255.1,3255.0,646.24682527]
[1734914044983,14.20423106,3255.1,3255.0,644.51525125]
[1734914045179,17.43223106,3255.1,3255.0,637.41854389]
[1734914045397,17.43223106,3255.1,3255.0,627.63147389]
[1734914045591,17.43223106,3255.1,3255.0,612.2534792]
[1734914045791,17.43223106,3255.1,3255.0,601.48378451]
[1734914046063,25.79153606,3255.1,3255.0,592.68782387]
[1734914046274,24.16674406,3255.1,3255.0,580.32449748]
[1734914046598,17.86252411,3255.1,3255.0,575.71619748]
[1734914046812,10.464588,3255.1,3255.0,575.71619748]
[1734914047136,10.97040953,3255.1,3255.0,575.71619748]
[1734914047262,11.78150953,3255.1,3255.0,575.71619748]
[1734914047459,7.61702153,3255.1,3255.0,574.18009748]
[1734914047767,7.61702153,3255.1,3255.0,571.10789748]
[1734914048419,15.45245035,3255.1,3255.0,562.55676508]
[1734914048605,12.22445035,3255.1,3255.0,557.94846508]
[1734914048895,15.52445035,3255.1,3255.0,557.94846508]
[1734914049058,15.77445035,3255.1,3255.0,557.94846508]
[1734914049265,12.41476767,3255.1,3255.0,552.24790653]
[1734914049679,12.41476767,3255.1,3255.0,547.63960653]
[1734914050080,14.97445035,3255.1,3255.0,547.63960653]
[1734914050278,15.29110689,3255.1,3255.0,543.07913475]
[1734914050601,15.29110689,3255.1,3255.0,541.54303475]
[1734914050773,12.29110689,3255.1,3255.0,538.47083475]
[1734914050974,11.48000689,3255.1,3255.0,538.47083475]
[1734914051473,15.89110089,3255.1,3255.0,538.47083475]
[1734914052205,9.01852282,3255.1,3255.0,539.68543475]
[1734914052407,9.01852282,3255.1,3255.0,542.71877112]
[1734914052604,9.01852282,3255.1,3255.0,539.68543475]
[1734914052799,9.01852282,3255.1,3255.0,538.47083475]
[1734914053107,12.09062282,3255.1,3255.0,538.47083475]
[1734914053285,4.56938089,3255.1,3255.0,538.47083475]
[1734914053483,4.56938089,3255.1,3255.0,539.58743475]
[1734914053790,4.56938089,3255.1,3255.0,542.62077112]
[1734914054011,4.56938089,3255.1,3255.0,539.58743475]
[1734914054734,1.26131142,3255.7,3255.0,539.58743475]
[1734914054909,1.26131142,3255.7,3255.1,1.1287]
[1734914056116,1.26131142,3255.7,3255.1,8.92238]
[1734914056279,1.89196713,3256.2,3255.5,1.1287]
[1734914056482,1.89196713,3256.2,3255.7,1.1287]
[1734914057691,0.66706713,3256.2,3255.9,1.706]
[1734914057920,0.66706713,3257.2,3256.0,10.07838]
[1734914058114,0.66706713,3257.2,3256.1,1.156]
[1734914058426,0.66706713,3257.2,3256.2,1.156]
[1734914058723,4.15088866,3257.2,3256.2,1.156]
[1734914058922,6.55435153,3256.8,3256.2,1.156]
[1734914059075,3.48382153,3256.8,3255.2,1.156]
[1734914059279,3.07109,3256.2,3255.2,1.156]
[1734914059479,3.48382153,3256.4,3255.5,0.62814209]
[1734914059688,3.48382153,3256.8,3255.6,1.156]
[1734914060026,3.07004,3257.3,3255.6,1.156]
[1734914060027,3.0,3257.1,3255.6,1.156]
[1734914060319,3.48382153,3257.2,3256.1,0.61048175]
[1734914060511,3.48382153,3257.2,3256.2,1.2045]
[1734914060715,6.55400153,3257.2,3256.2,1.2045]
[1734914061123,3.48382153,3257.2,3256.2,1.2045]
[1734914061420,4.94909609,3257.4,3256.2,1.2045]
[1734914061611,8.01905609,3257.4,3256.2,1.2045]
[1734914062226,4.94909609,3257.4,3256.2,1.2045]
[1734914062394,3.48382153,3257.2,3256.2,1.2045]
[1734914062715,3.07046,3256.9,3256.2,1.2045]
[1734914063023,3.48382153,3257.2,3256.2,1.2045]
[1734914063024,3.48382153,3256.8,3256.2,1.2045]
[1734914063204,3.48382153,3257.2,3256.2,1.2045]
[1734914063802,1.94909609,3257.4,3256.2,1.2045]
[1734914064192,3.07004,3257.3,3256.2,1.2045]
[1734914064394,3.07024,3257.1,3256.2,1.2045]
[1734914064726,3.07034,3257.0,3256.2,1.2045]
[1734914064927,3.07068,3256.6,3256.2,1.2045]
[1734914065435,3.48382153,3257.2,3256.2,1.2045]
[1734914065741,3.07002,3257.3,3256.2,1.2045]
[1734914066395,1.94909609,3257.4,3256.2,1.2045]
[1734914066900,1.94909609,3257.4,3256.1,0.25]
[1734914066901,2.52163475,3258.0,3256.4,1.1287]
[1734914067227,2.52163475,3258.0,3257.3,1.1287]
[1734914067430,3.06957,3257.8,3257.3,1.1287]
[1734914067736,3.06969,3257.7,3256.8,1.1287]
[1734914067893,8.43862515,3258.0,3256.8,1.1287]
[1734914068096,3.06947,3257.9,3256.8,1.1287]
[1734914068803,3.06928,3258.1,3257.1,0.62454655]
[1734914069127,3.06928,3258.1,3257.2,1.1307]
[1734914069333,3.0,3258.0,3257.2,1.1307]
[1734914070249,3.48382153,3258.4,3257.2,1.1307]
[1734914070410,3.06883,3258.6,3257.2,1.1307]
[1734914070749,4.61452153,3258.8,3257.2,1.1307]
[1734914070907,3.48382153,3258.8,3257.3,1.1763]
[1734914071247,1.25613729,3259.0,3257.6,1.1763]
[1734914071430,1.25613729,3259.0,3257.7,0.25]
[1734914071635,1.25613729,3259.5,3258.7,1.1702]
[1734914072645,0.31706441,3259.4,3258.9,1.2066]
[1734914072949,1.25613729,3259.5,3259.0,1.012898]
[1734914073126,1.25613729,3259.5,3259.1,1.2066]
[1734914073330,1.25613729,3259.5,3259.3,1.2066]
[1734914073531,2.43263729,3261.2,3259.4,1.2066]
[1734914073730,3.06692,3260.6,3259.4,1.2066]
[1734914073939,3.06675,3260.8,3259.4,1.2066]
[1734914074245,5.49907729,3261.2,3259.5,1.2066]
[1734914074406,3.48382153,3259.7,3258.5,1.2066]
[1734914074610,1.1765,3259.9,3258.5,1.2066]
[1734914074611,3.06828,3259.2,3258.5,1.2066]
[1734914074830,3.06844,3259.0,3258.5,1.2066]
[1734914075140,3.06844,3259.0,3258.5,1.80809035]
[1734914075348,3.06871,3258.7,3258.5,1.2066]
[1734914075529,3.06871,3258.7,3256.5,1.27270246]
[1734914075530,3.06871,3258.7,3257.8,1.2066]
[1734914075731,3.48382153,3258.5,3257.8,1.2066]
[1734914076044,3.06932,3258.1,3257.8,1.2066]
[1734914076344,3.06909,3258.3,3256.6,1.2066]
[1734914076644,3.06967,3257.7,3256.6,1.2066]
[1734914077108,6.55275153,3258.5,3256.6,1.2066]
[1734914077304,6.06901,3258.4,3257.0,1.1912]
[1734914077520,3.06901,3258.4,3257.0,1.37288951]
[1734914078044,3.0,3258.4,3257.0,1.1912]
[1734914078232,3.06932,3258.1,3257.0,1.1912]
[1734914078636,3.06932,3258.1,3257.4,0.62618665]
[1734914079342,3.06906,3258.4,3257.5,1.6394]
[1734914079509,3.06918,3258.2,3257.5,1.6394]
[1734914080549,3.0,3258.6,3257.5,1.6394]
[1734914080751,3.06918,3258.2,3257.5,1.6394]
[1734914081253,3.0691,3258.3,3257.5,1.6394]
[1734914081410,3.06918,3258.2,3257.5,1.6394]
[1734914082229,3.069,3258.4,3257.5,1.6394]
[1734914082635,3.0691,3258.3,3257.5,1.6427]
[1734914083360,3.31735108,3258.6,3257.5,1.6427]
[1734914083750,3.06942,3258.0,3257.5,1.6427]
[1734914084587,3.06913,3258.3,3257.5,1.6427]
[1734914084798,3.06913,3258.3,3257.5,1.63563378]
[1734914084935,3.06884,3258.6,3257.5,1.79919716]
[1734914085269,3.06883,3258.6,3257.5,1.63563378]
[1734914085635,3.06919,3258.2,3257.5,1.63563378]
[1734914086071,3.06899,3258.4,3257.5,1.63563378]
[1734914087153,3.06899,3258.4,3257.8,0.60801671]
[1734914088372,3.06899,3258.4,3257.5,1.63563378]
[1734914088373,3.06889,3258.5,3257.5,1.63563378]
[1734914088551,3.06927,3258.1,3257.1,1.5588]
[1734914088756,3.06993,3257.4,3256.8,1.5588]
[1734914088958,3.07034,3257.0,3256.8,1.5588]
[1734914089755,3.07008,3257.3,3256.8,1.5588]
[1734914090380,3.0,3257.5,3256.8,1.5588]
[1734914090545,3.07026,3257.1,3256.8,1.5588]
[1734914091044,3.0,3257.5,3256.8,1.5588]
[1734914091256,3.06999,3257.4,3256.8,1.5588]
[1734914091840,3.07004,3257.3,3256.8,1.5588]
[1734914092076,3.0,3257.5,3256.8,1.5588]
[1734914092278,3.0,3257.5,3256.5,1.5588]
[1734914092479,3.07009,3257.3,3256.5,1.5588]
[1734914093381,3.07021,3257.1,3256.5,1.5588]
[1734914093885,3.07034,3257.0,3256.5,1.5588]
[1734914094212,3.07013,3257.2,3256.5,1.5588]
[1734914094659,3.0,3257.5,3256.5,1.5588]
[1734914094861,3.07022,3257.1,3256.5,1.5588]
[1734914095695,3.07003,3257.3,3256.5,1.5588]
[1734914095995,3.06931,3258.1,3256.6,1.5127]
[1734914096548,1.25613729,3258.3,3256.6,1.5127]
[1734914096774,1.25613729,3258.3,3256.8,1.6084]
[1734914096976,3.0,3258.5,3257.6,0.60592644]
[1734914097174,3.0,3258.5,3257.7,1.6084]
[1734914097382,1.25613729,3258.8,3257.7,1.6084]
[1734914097872,3.06871,3258.7,3257.7,1.6084]
[1734914098596,0.31726809,3258.9,3257.7,1.6084]
[1734914098797,5.27460002,3259.1,3257.7,1.6084]
[1734914099105,4.01846273,3258.6,3257.7,1.6084]
[1734914099294,3.06921,3258.2,3257.7,1.6084]
[1734914099832,3.0,3258.5,3257.7,1.6084]
[1734914099989,3.06917,3258.2,3257.1,1.6602]
[1734914100184,1.654,3258.3,3257.1,1.6602]
[1734914100185,3.0697,3257.7,3257.1,1.6602]
[1734914100493,3.0,3258.3,3257.1,1.6602]
[1734914100693,3.06952,3257.9,3257.1,1.6602]
[1734914100908,3.47955766,3257.6,3257.1,1.6602]
[1734914101210,3.06991,3257.5,3257.1,1.6602]
[1734914101408,3.47955766,3257.6,3257.1,1.6602]
[1734914101606,3.06993,3257.4,3257.1,1.6602]
[1734914102195,3.47955766,3257.6,3257.1,1.6602]
[1734914102392,3.0,3257.9,3257.1,1.6602]
[1734914102685,3.06966,3257.7,3257.1,1.6602]
[1734914102894,3.47955766,3257.6,3256.7,1.6186]
[1734914103081,3.07046,3256.9,3256.7,1.6186]
[1734914103706,6.54976766,3257.2,3256.7,1.6186]
[1734914103909,3.07026,3257.1,3256.7,1.6186]
[1734914104579,3.07032,3257.0,3256.7,1.6186]
[1734914104813,3.47955766,3257.2,3256.7,1.6186]
[1734914105018,3.07087,3256.4,3256.3,1.5605]
[1734914105582,3.07111,3256.2,3255.4,1.5605]
[1734914106097,3.07111,3256.2,3256.0,0.61947772]